bitfinex/quotes_ETHUSD_20220218
["timestamp","ask_amount","ask_price","bid_price","bid_amount"]
[1645152155097,2.16237,2901.2,2900.6,0.01955667]
[1645152155394,1.16237,2901.2,2900.6,0.015978]
[1645152155793,0.86236,2901.1,2900.6,0.015978]
[1645152155993,0.86236,2901.1,2900.7,1.1873651]
[1645152156193,0.86236,2901.1,2900.6,0.015978]
[1645152156194,1.72463,2901.1,2900.6,0.015978]
[1645152156408,1.72463,2901.1,2899.9,0.86225]
[1645152156409,26.1,2900.9,2899.9,0.00357867]
[1645152156605,20.1,2900.5,2899.7,0.00357867]
[1645152156799,23.7724,2900.4,2899.4,0.00357867]
[1645152156999,23.7724,2900.4,2899.2,0.00357867]
[1645152157202,20.1,2900.1,2899.0,0.87687981]
[1645152157459,6.0,2900.3,2898.3,0.87687981]
[1645152157460,0.3,2899.2,2898.3,0.87687981]
[1645152157662,0.3,2899.2,2899.0,0.00356276]
[1645152157859,0.495,2899.4,2898.3,0.87687981]
[1645152157860,0.3,2899.4,2898.3,0.87687981]
[1645152158060,3.5,2899.7,2898.3,0.17596276]
[1645152158260,23.9,2899.7,2898.3,0.17596276]
[1645152158561,22.87821232,2899.6,2898.9,0.8649497]
[1645152158760,22.43513,2899.6,2899.0,0.00356276]
[1645152158958,22.43513,2899.6,2898.9,0.8649497]
[1645152159164,22.43513,2899.6,2899.0,0.00356337]
[1645152159359,2.33513,2899.6,2899.0,0.00356337]
[1645152159560,1.4724,2899.6,2899.0,0.00356337]
[1645152159765,0.3,2899.4,2899.0,0.00356337]
[1645152160361,0.4724,2899.6,2899.2,0.00188501]
[1645152161299,0.4724,2899.6,2899.0,0.00356337]
[1645152161500,0.4724,2899.6,2899.3,0.00188495]
[1645152161707,0.86276,2899.5,2899.3,0.00188495]
[1645152162302,0.86276,2899.5,2898.3,0.00356337]
[1645152162506,3.9724,2899.6,2898.3,0.00356337]
[1645152162702,0.3,2899.6,2899.3,0.00188495]
[1645152162903,2.45420593,2899.7,2899.3,0.00188495]
[1645152163604,3.31688593,2899.7,2898.9,0.00356337]
[1645152164002,3.31688593,2899.7,2899.4,0.00188488]
[1645152164206,2.16268,2899.7,2899.4,0.00188488]
[1645152164407,1.16268,2899.7,2899.4,0.00188488]
[1645152164803,1.16268,2899.7,2898.9,0.00356337]
[1645152165048,1.16268,2899.7,2899.4,0.00188485]
[1645152165251,0.1724,2900.0,2899.4,0.00188485]
[1645152165454,0.86263,2900.0,2899.4,0.00188485]
[1645152165650,0.86263,2900.0,2899.4,0.00544822]
[1645152166151,0.86263,2900.0,2899.4,0.00356337]
[1645152166355,0.86263,2900.0,2899.6,0.00188475]
[1645152166356,2.05576397,2900.0,2899.6,0.00188475]
[1645152166957,2.58787,2900.2,2899.6,0.00188475]
[1645152167157,1.72524,2900.4,2899.4,0.00356337]
[1645152167158,3.5,2900.4,2899.4,0.00356337]
[1645152167559,7.5391,2900.8,2899.7,0.00188469]
[1645152167959,7.5391,2900.8,2900.4,0.91945391]
[1645152168159,0.13094525,2900.3,2900.0,1.16464461]
[1645152168556,0.13094525,2900.3,2900.1,0.00354396]
[1645152169801,0.13094525,2900.3,2900.1,0.00682713]
[1645152169998,0.13094525,2900.3,2900.1,0.00328317]
[1645152170600,0.99351525,2900.3,2900.1,0.00328317]
[1645152170801,0.99346525,2900.3,2899.8,1.09009015]
[1645152171002,0.43094525,2900.3,2899.9,0.00354396]
[1645152171201,0.13094525,2900.3,2900.1,0.00328317]
[1645152172105,1.85601525,2900.3,2899.2,0.1724]
[1645152172306,1.29349525,2900.3,2900.1,0.00328317]
[1645152173350,1.29349525,2900.3,2899.4,0.00354396]
[1645152173550,4.79349525,2900.3,2900.1,0.00328317]
[1645152173752,1.29349525,2900.3,2900.1,0.00328317]
[1645152173957,0.13094525,2900.3,2900.1,0.00328317]
[1645152174557,0.13094525,2900.3,2899.9,0.86576396]
[1645152174558,0.13094525,2900.3,2899.9,1.86576396]
[1645152174752,0.13094525,2900.3,2900.1,0.00328317]
[1645152175753,0.13094525,2900.3,2899.9,0.00354396]
[1645152175954,0.13094525,2900.3,2900.1,0.00328317]
[1645152176805,0.13094525,2900.3,2899.9,0.00354396]
[1645152177113,0.13094525,2900.3,2900.1,0.00328317]
[1645152178102,0.13094525,2900.3,2899.9,0.00354396]
[1645152178305,0.13094525,2900.3,2900.1,0.00328317]
[1645152179204,0.13094525,2900.3,2899.8,2.26470534]
[1645152179407,0.13094525,2900.3,2899.9,0.00352673]
[1645152179612,0.13094525,2900.3,2900.1,0.00328317]
[1645152180450,0.13094525,2900.3,2899.9,0.00352673]
[1645152181655,0.13094525,2900.3,2899.9,0.63474225]
[1645152181855,0.13094525,2900.3,2900.0,0.00328324]
[1645152182857,0.13094525,2900.3,2899.9,1.00352673]
[1645152183057,0.13094525,2900.3,2900.0,0.00328326]
[1645152183902,0.9554162,2901.1,2900.1,5.0]
[1645152183903,0.00328201,2901.1,2900.1,5.0]
[1645152184109,1.8555,2901.4,2900.1,5.0]
[1645152184110,1.8555,2901.4,2900.2,0.80968966]
[1645152184304,0.00328201,2901.1,2900.3,1.13238966]
[1645152184501,0.00328201,2901.1,2900.4,1.66817293]
[1645152184702,0.00328201,2901.1,2900.5,1.42886293]
[1645152184906,0.00328201,2901.1,2901.0,1.02152992]
[1645152185103,0.00328201,2901.1,2900.7,0.495]
[1645152185304,0.89430607,2901.8,2900.3,6.14373673]
[1645152185305,0.9824566,2901.7,2900.3,6.14373673]
[1645152185504,0.0032823,2901.2,2900.3,6.14373673]
[1645152185703,0.0032823,2901.2,2900.4,1.0]
[1645152186406,0.93672477,2901.5,2900.7,1.00866926]
[1645152186604,1.23672477,2901.5,2900.7,1.00866926]
[1645152186804,0.00328232,2901.1,2900.7,1.00866926]
[1645152187651,2.09886477,2901.5,2900.7,1.00866926]
[1645152188055,0.00328237,2901.1,2900.7,1.00866926]
[1645152188850,0.3,2901.5,2900.7,1.00866926]
[1645152189050,0.00328237,2901.1,2900.7,1.00866926]
[1645152189854,0.00328237,2901.1,2900.7,1.87072926]
[1645152190059,0.81112126,2901.4,2900.7,1.87072926]
[1645152190254,0.00328237,2901.1,2900.7,1.87072926]
[1645152190855,0.00328237,2901.1,2900.7,2.73274926]
[1645152191306,0.3,2901.5,2900.7,2.73274926]
[1645152191506,0.00328237,2901.1,2900.7,1.87072926]
[1645152191704,0.00328237,2901.1,2900.7,1.00866926]
[1645152192411,1.97228072,2901.7,2900.7,1.00866926]
[1645152192614,0.81234357,2901.6,2900.7,1.00866926]
[1645152192808,0.00328237,2901.1,2900.7,1.00866926]
[1645152193607,0.81234357,2901.6,2900.7,1.00866926]
[1645152194009,0.00328237,2901.1,2900.7,1.00866926]
[1645152194809,0.81234357,2901.4,2900.7,1.00866926]
[1645152195062,0.00328237,2901.1,2900.7,1.00866926]
[1645152195865,0.00328237,2901.1,2900.8,0.63747625]
[1645152196062,0.00328237,2901.1,2900.7,1.00866926]
[1645152196063,0.81234357,2901.2,2900.7,1.00866926]
[1645152196266,0.00328237,2901.1,2900.7,1.00866926]
[1645152196868,3.50328237,2901.1,2900.8,0.63765722]
[1645152197072,0.71780796,2900.5,2900.3,0.00352673]
[1645152197271,1.01780796,2900.5,2900.1,1.50359735]
[1645152197467,1.01780796,2900.5,2900.2,0.64130735]
[1645152197873,0.71780796,2900.5,2900.3,1.13241406]
[1645152198068,0.71780796,2900.5,2900.4,0.63778062]
[1645152202852,0.00317106,2901.1,2900.6,0.86209]
[1645152203063,0.00317106,2901.1,2900.7,0.63778062]
[1645152203256,3.5,2901.9,2900.8,0.1723]
[1645152203456,0.80304618,2901.8,2900.9,1.13278062]
[1645152203654,0.00317124,2901.1,2901.0,0.81008062]
[1645152203854,0.00317124,2901.1,2901.0,2.1602568]
[1645152204050,0.00317124,2901.1,2901.0,3.7116668]
[1645152204451,3.5,2901.9,2901.0,4.7116668]
[1645152204757,0.80279166,2901.8,2901.3,0.86189]
[1645152205151,0.80279166,2901.8,2901.4,0.65138004]
[1645152205352,0.80279166,2901.8,2901.3,2.7238]
[1645152205568,0.80279166,2901.7,2901.6,0.9325899]
[1645152205954,0.00328194,2901.7,2901.2,0.86199]
[1645152206205,0.86533194,2901.7,2901.0,0.495]
[1645152206406,0.80279166,2901.6,2901.1,0.65154641]
[1645152206606,0.80279166,2901.5,2900.7,3.91964]
[1645152206808,0.80279166,2901.6,2900.8,0.65154378]
[1645152207005,0.80279166,2901.5,2900.8,0.65154378]
[1645152207211,0.80279166,2901.4,2901.1,1.00821971]
[1645152207412,0.0032821,2901.5,2900.7,3.91964]
[1645152207413,4.30279166,2901.3,2900.7,2.91964]
[1645152207612,0.80279166,2901.2,2900.8,0.65159037]
[1645152207806,1.10279166,2901.2,2900.4,3.2118]
[1645152208007,0.80279166,2901.1,2900.5,0.65165382]
[1645152208212,0.80279166,2901.1,2900.6,0.65165382]
[1645152208406,0.80607399,2901.1,2900.7,0.65165382]
[1645152208606,0.80607399,2901.1,2900.8,0.65165382]
[1645152208806,0.80607399,2901.1,2900.6,1.06328543]
[1645152209008,0.80607399,2901.1,2900.7,0.65191258]
[1645152209207,0.80279166,2901.1,2900.7,0.65191258]
[1645152209608,0.80607401,2901.1,2900.7,0.65191258]
[1645152210051,0.80607401,2901.1,2900.7,1.51404258]
[1645152210252,0.80607401,2901.1,2900.8,1.51397258]
[1645152210454,0.80279166,2901.1,2900.8,0.86206]
[1645152210653,0.80279166,2901.0,2900.9,0.65218174]
[1645152211055,0.00328237,2901.1,2900.7,1.0]
[1645152211260,0.00328237,2901.1,2900.9,0.86205]
[1645152211458,0.00328237,2901.1,2901.0,0.65221565]
[1645152211658,0.8033624,2901.6,2901.0,0.65221565]
[1645152211859,1.1033624,2901.6,2901.4,1.04277569]
[1645152212072,0.8033624,2901.5,2901.4,1.04277569]
[1645152212659,0.8033624,2901.5,2900.8,1.1692]
[1645152212962,0.64844616,2901.5,2900.9,0.65226679]
[1645152213159,0.8033624,2901.4,2900.9,0.65226679]
[1645152213369,0.94844616,2901.6,2901.0,0.65226679]
[1645152213370,0.8033624,2901.3,2901.0,0.65226679]
[1645152213560,0.8033624,2901.5,2900.7,0.86211]
[1645152213807,1.6655024,2901.4,2900.9,1.03452812]
[1645152214004,1.6655224,2901.3,2901.0,0.65229183]
[1645152214203,0.8033624,2901.2,2901.0,0.65229183]
[1645152214407,0.80664466,2901.2,2901.0,0.65229183]
[1645152214606,0.80664466,2901.2,2900.9,1.03452812]
[1645152214804,1.10664466,2901.2,2900.9,1.03452812]
[1645152215005,0.8033624,2901.1,2900.9,1.03452812]
[1645152215805,0.8033624,2901.1,2901.0,0.65248325]
[1645152216307,0.0032823,2901.2,2901.0,0.65248325]
[1645152216507,0.8033624,2901.4,2901.0,0.65248325]
[1645152217009,0.0032823,2901.2,2901.0,0.65248325]
[1645152217208,0.0032823,2901.2,2900.9,1.03452812]
[1645152217448,0.0032823,2901.2,2901.0,0.65271561]
[1645152217648,0.8033624,2901.4,2901.1,0.65271537]
[1645152217851,0.0032823,2901.2,2900.9,0.31148985]
[1645152218049,0.0032823,2901.2,2901.0,0.66643962]
[1645152218660,0.8066447,2901.2,2901.0,0.66643962]
[1645152218851,0.8033624,2901.1,2901.0,0.66643962]
[1645152223011,0.8033624,2901.1,2901.0,2.39031962]
[1645152223211,0.0032823,2901.2,2901.0,2.39031962]
[1645152223408,0.0032823,2901.2,2901.1,0.66643962]
[1645152223605,0.79197667,2901.7,2901.1,1.52821962]
[1645152223810,0.79197667,2901.6,2901.2,1.52824962]
[1645152224008,0.64844616,2902.0,2901.6,1.16307339]
[1645152224205,1.44052462,2902.0,2901.6,2.88660339]
[1645152224608,2.3511056,2902.1,2901.7,0.66660707]
[1645152224609,0.79207846,2901.9,2901.7,0.66660707]
[1645152224806,0.79207846,2901.8,2901.7,3.25194707]
[1645152225080,0.64844616,2902.1,2901.7,1.52837707]
[1645152225376,0.64844616,2902.1,2901.6,4.61013339]
[1645152225377,0.00328181,2901.9,2901.8,0.66660707]
[1645152225577,2.47603748,2902.7,2901.8,0.66660707]
[1645152225783,3.49727153,2902.8,2901.9,4.16660707]
[1645152225784,0.00497886,2902.1,2901.9,4.16660707]
[1645152225980,0.79203605,2902.6,2901.9,4.16660707]
[1645152225981,0.65924959,2902.6,2902.0,2.38999707]
[1645152226284,0.00497886,2902.4,2902.1,0.66660707]
[1645152226585,0.74072346,2902.3,2902.1,0.66660707]
[1645152226780,0.86003665,2902.7,2901.7,0.9671]
[1645152226781,0.74072346,2902.2,2901.7,0.9671]
[1645152226980,0.00497886,2902.2,2901.8,0.71736369]
[1645152227180,0.00497886,2902.6,2902.0,1.72348]
[1645152227378,0.74018415,2902.5,2902.1,0.71736369]
[1645152227581,0.74018415,2902.5,2902.2,0.71736369]
[1645152227778,0.74516301,2902.4,2902.3,0.71736369]
[1645152227980,0.74018415,2902.4,2902.3,0.71736369]
[1645152228179,0.74018415,2902.8,2902.3,0.71736369]
[1645152228481,1.03984546,2902.7,2902.1,0.8617]
[1645152228708,0.74018415,2902.6,2902.2,0.71624745]
[1645152228904,0.00497886,2902.5,2902.2,0.71624745]
[1645152229110,0.74018415,2902.4,2902.0,1.1799]
[1645152229306,0.74018415,2902.4,2902.1,0.71577557]
[1645152229506,0.00497886,2902.3,2902.0,0.86177]
[1645152229705,1.03626869,2902.7,2902.0,0.86177]
[1645152229706,0.74018415,2902.2,2902.0,0.86177]
[1645152229908,0.74018415,2902.1,2902.0,0.86177]
[1645152230107,0.74018415,2902.1,2902.0,1.577373]
[1645152230306,0.74018415,2902.1,2902.0,0.86177]
[1645152230505,0.74018415,2902.3,2902.0,0.86177]
[1645152230705,0.74018415,2902.2,2902.0,0.86177]
[1645152231311,0.74018415,2902.2,2901.9,0.86176]
[1645152231511,0.74018415,2902.2,2902.0,0.71544082]
[1645152232552,0.7434717,2902.2,2902.0,0.71544082]
[1645152232763,0.00328755,2902.2,2902.0,2.43900082]
[1645152233056,0.00328755,2902.2,2902.0,1.72356]
[1645152233453,0.00497886,2902.4,2902.0,1.72356]
[1645152233662,0.00328755,2902.2,2902.0,1.72356]
[1645152234061,0.00826641,2902.2,2902.0,1.72356]
[1645152234265,0.73837928,2902.1,2902.0,1.72356]
[1645152234560,0.00497886,2902.6,2902.0,2.43851838]
[1645152234764,0.7384657,2902.5,2902.1,0.86174]
[1645152234959,0.7384657,2902.5,2902.1,1.72348]
[1645152234960,0.00328755,2902.2,2902.1,1.72348]
[1645152235162,0.00328755,2902.2,2902.1,0.86174]
[1645152235359,0.00826641,2902.2,2902.1,0.86174]
[1645152235559,0.00328755,2902.2,2902.1,0.86174]
[1645152235759,0.00497886,2902.6,2902.1,0.86174]
[1645152235959,0.00328752,2902.3,2902.1,1.72344]
[1645152236822,0.00328752,2902.3,2902.1,2.58514]
[1645152237021,0.73822083,2902.7,2902.1,2.58514]
[1645152237224,0.00328749,2902.3,2902.2,0.8617]
[1645152237420,0.00328749,2902.3,2902.1,0.8617]
[1645152237622,0.49883355,2902.4,2902.1,0.8617]
[1645152237819,0.49883355,2902.4,2902.0,1.71190916]
[1645152238019,0.00497886,2902.3,2902.0,1.71190916]
[1645152238220,0.00497886,2902.7,2902.1,1.00259744]
[1645152238423,0.00497886,2902.8,2902.2,0.86171]
[1645152238621,0.00497886,2902.8,2902.2,1.72339]
[1645152239024,0.00497886,2902.8,2902.2,0.86168]
[1645152239222,0.65427073,2903.0,2902.2,0.86168]
[1645152239427,0.30497886,2903.1,2902.2,0.86168]
[1645152239428,0.00497886,2902.9,2902.2,0.86168]
[1645152239822,0.00497886,2902.9,2902.2,1.72335]
[1645152240059,0.00497886,2902.9,2902.3,0.86168]
[1645152240456,0.00497886,2902.9,2902.4,0.86164]
[1645152240857,0.00140184,2902.7,2902.4,0.86164]
[1645152241058,0.00140184,2902.7,2902.5,0.86162]
[1645152241662,0.00140184,2902.7,2902.5,1.72324]
[1645152241864,3.81657073,2903.4,2902.5,1.72324]
[1645152241865,0.00497886,2903.1,2902.5,0.86162]
[1645152242065,0.00328723,2902.7,2902.6,1.72268]
[1645152242664,0.00328723,2902.7,2902.6,3.44545]
[1645152243064,3.5,2903.5,2902.6,1.72277]
[1645152243065,0.00497886,2903.4,2902.6,1.72277]
[1645152243266,0.0032872,2902.8,2902.6,1.72277]
[1645152243908,0.0032872,2902.8,2902.7,1.10687075]
[1645152244309,0.00497886,2903.4,2902.9,0.86147]
[1645152244907,0.00497886,2903.6,2902.9,0.86147]
[1645152245706,0.00328681,2903.4,2902.9,0.86147]
[1645152245906,0.00328681,2903.4,2902.9,1.72294]
[1645152246108,0.00328681,2903.4,2903.0,0.86145]
[1645152246711,0.00497886,2903.6,2903.0,0.86145]
[1645152247010,0.00328684,2903.3,2903.0,0.86145]
[1645152247660,0.00328684,2903.3,2903.1,0.86144]
[1645152247860,0.00497886,2903.6,2903.2,0.8614]
[1645152248061,0.00328687,2903.3,2903.2,0.8614]
[1645152249061,0.00497886,2903.8,2903.2,1.96777155]
[1645152249263,0.00328681,2903.4,2903.2,2.82915155]
[1645152249561,0.00328681,2903.4,2903.3,1.72255]
[1645152250162,0.00497886,2903.8,2903.2,1.96775155]
[1645152250564,0.00328916,2903.5,2903.2,1.96775155]
[1645152251324,0.00497886,2903.8,2903.2,1.96775155]
[1645152251723,0.00328916,2903.5,2903.2,1.96775155]
[1645152251925,0.00328916,2903.5,2903.3,0.86136]
[1645152252530,0.00497886,2903.8,2903.2,1.96775155]
[1645152252924,0.00328913,2903.5,2903.2,1.96775155]
[1645152253426,0.00328913,2903.5,2903.0,1.89481]
[1645152253627,0.00328913,2903.5,2902.8,2.88715]
[1645152253628,0.00328913,2903.5,2902.8,1.1643]
[1645152253825,3.5,2903.7,2902.8,1.1643]
[1645152254026,0.00497886,2903.6,2902.8,1.1643]
[1645152254224,0.00328923,2903.4,2902.8,1.1643]
[1645152254426,0.00328923,2903.4,2902.9,1.01434625]
[1645152254627,0.00328923,2903.4,2902.3,4.91049]
[1645152254628,0.00328923,2903.4,2902.4,1.1568]
[1645152254833,0.00328923,2903.4,2902.5,0.86157]
[1645152255062,4.53639073,2903.5,2902.5,0.86157]
[1645152255264,0.00497886,2903.4,2902.5,0.86157]
[1645152255463,0.00328945,2903.0,2902.5,0.86157]
[1645152255666,0.00328945,2903.0,2902.7,0.87281961]
[1645152255866,0.00328945,2903.0,2902.7,1.73431961]
[1645152256271,0.00497886,2903.4,2902.7,1.73431961]
[1645152256472,0.00328949,2903.0,2902.7,1.73431961]
[1645152256874,0.00328949,2903.0,2902.8,0.86147]
[1645152257073,0.00328949,2903.0,2902.9,0.86145]
[1645152257478,0.00497886,2903.4,2902.9,0.86145]
[1645152257479,0.00497886,2903.6,2902.9,0.86145]
[1645152257677,0.0031784,2903.1,2902.9,0.86145]
[1645152257875,0.0031784,2903.1,2902.7,0.16806998]
[1645152258077,0.0031784,2903.1,2902.8,0.86145]
[1645152258477,0.72181118,2903.1,2902.7,0.16806998]
[1645152258708,0.71863278,2903.0,2902.7,0.16806998]
[1645152258909,0.00497886,2902.9,2902.7,0.16806998]
[1645152259111,0.0031784,2903.1,2902.7,0.16806998]
[1645152259913,0.68998147,2903.1,2902.7,0.16806998]
[1645152260116,0.69799296,2903.0,2902.7,0.16806998]
[1645152260313,0.68998147,2902.9,2902.7,1.02956998]
[1645152260513,0.00497886,2902.9,2902.7,0.16806998]
[1645152260711,0.00303263,2903.0,2902.7,0.16806998]
[1645152261213,0.00292439,2903.0,2902.7,0.16806998]
[1645152261820,0.69336286,2903.0,2902.7,0.16806998]
[1645152262017,0.69541733,2902.9,2902.7,0.16806998]
[1645152262217,0.00497886,2902.9,2902.7,0.16806998]
[1645152262469,0.00292439,2903.0,2902.7,0.16806998]
[1645152263360,0.69068525,2903.0,2902.7,0.16806998]
[1645152263563,0.69068525,2902.9,2902.7,0.16806998]
[1645152263762,0.69068525,2902.8,2902.7,0.16806998]
[1645152264463,0.0030702,2903.0,2902.7,0.16806998]
[1645152264662,0.00497886,2903.0,2902.4,2.58462]
[1645152264865,0.69376774,2902.9,2902.5,0.76246098]
[1645152265266,0.69566411,2902.8,2902.5,2.48560098]
[1645152265470,0.69068525,2902.7,2902.5,1.72314]
[1645152265664,0.69068525,2902.7,2902.2,5.88048]
[1645152265865,0.69068525,2902.7,2902.4,1.11024886]
[1645152266064,0.00308257,2902.7,2902.5,0.76251359]
[1645152266513,0.00308257,2902.7,2902.5,1.62409359]
[1645152266711,0.00308257,2902.7,2902.5,0.86158]
[1645152266912,0.00308257,2902.7,2902.6,0.7633326]
[1645152267117,0.69196814,2902.7,2902.6,0.7633326]
[1645152267316,0.69505071,2902.7,2902.6,0.7633326]
[1645152267516,0.00308257,2902.7,2902.6,0.7633326]
[1645152267921,0.00308257,2902.7,2902.5,1.72315]
[1645152268316,0.696947,2902.8,2902.5,0.86158]
[1645152268516,0.69504497,2902.7,2902.5,0.86158]
[1645152268716,0.69504497,2902.7,2902.4,1.97180886]
[1645152268717,0.69196814,2902.6,2902.4,1.97180886]
[1645152268918,0.00307683,2902.7,2902.5,0.76386437]
[1645152269416,0.00497886,2902.8,2902.5,0.76386437]
[1645152269616,0.69322292,2902.7,2902.5,0.76386437]
[1645152269816,0.69322292,2902.7,2902.5,2.48695437]
[1645152269817,0.69629975,2902.7,2902.5,2.48695437]
[1645152270074,0.00307683,2902.7,2902.6,0.76386437]
[1645152270471,0.69656043,2902.7,2902.6,0.76386437]
[1645152270670,0.00497886,2903.0,2902.6,0.76386437]
[1645152270671,0.6934836,2902.9,2902.6,0.76386437]
[1645152270870,0.0030768,2902.8,2902.6,0.76386437]
[1645152271069,0.00805566,2902.8,2902.6,1.62538437]
[1645152271283,0.6934836,2902.7,2902.6,0.86152]
[1645152271472,0.6934836,2902.7,2902.6,1.62608596]
[1645152271872,0.6934836,2903.0,2902.6,1.62608596]
[1645152272073,0.00307719,2902.8,2902.7,0.76459241]
[1645152272272,0.69656079,2902.8,2902.7,0.76459241]
[1645152273076,0.6934836,2903.0,2902.7,0.76459241]
[1645152273274,0.6934836,2902.9,2902.7,0.76459241]
[1645152273473,0.69656073,2902.9,2902.6,0.86152]
[1645152273710,0.69656073,2902.9,2902.4,1.11024886]
[1645152273905,0.00497886,2902.8,2902.5,0.76468079]
[1645152274105,0.6934836,2902.7,2902.5,0.76468079]
[1645152274309,0.6934836,2902.6,2902.5,0.76468079]
[1645152274707,0.00307719,2902.8,2902.5,1.62627079]
[1645152274908,0.70153965,2902.8,2902.6,0.76473331]
[1645152275106,0.6934836,2902.7,2902.6,0.76473331]
[1645152275710,0.00307716,2902.8,2902.5,0.76473331]
[1645152275911,0.00805602,2902.8,2902.5,2.48792331]
[1645152276208,0.6934836,2902.7,2902.6,0.76473331]
[1645152276811,0.6934836,2902.9,2902.6,0.76473331]
[1645152277011,0.69656076,2902.8,2902.6,0.76473331]
[1645152277211,0.6934836,2902.7,2902.6,0.76473331]
[1645152277457,0.00307716,2902.8,2902.6,1.62629331]
[1645152277658,0.00805602,2902.8,2902.7,0.76473331]
[1645152277857,0.69846246,2902.8,2902.7,0.76473331]
[1645152278057,0.69656073,2902.8,2902.6,0.86156]
[1645152278262,0.6934836,2902.7,2902.6,0.86156]
[1645152278560,0.00307713,2902.8,2902.6,0.7650579]
[1645152278858,0.00307713,2902.8,2902.5,1.72319]
[1645152279159,0.6934836,2902.9,2902.5,0.8616]
[1645152279359,0.00307714,2902.8,2902.6,1.62671645]
[1645152279557,0.00307714,2902.8,2902.5,0.86158]
[1645152279960,0.00307714,2902.8,2902.6,0.76525088]
[1645152280158,0.00307714,2902.8,2902.4,1.11024886]
[1645152280358,0.6934836,2902.9,2902.5,1.62680995]
[1645152280560,0.69656077,2902.8,2902.6,0.76521378]
[1645152280760,0.00307717,2902.8,2902.5,0.8616]
[1645152280965,0.00307717,2902.8,2902.6,0.76529594]
[1645152281209,0.00307717,2902.8,2902.4,3.83332886]
[1645152281408,0.69466656,2902.9,2902.5,1.62680257]
[1645152281607,0.69466656,2902.9,2902.5,3.34979257]
[1645152281809,0.6977437,2902.8,2902.7,0.86151]
[1645152282211,0.6977437,2902.8,2902.7,1.62687253]
[1645152282412,0.00307714,2902.8,2902.7,0.86151]
[1645152282614,0.00497886,2902.9,2902.7,0.76537406]
[1645152282810,0.6946877,2902.8,2902.5,2.58449]
[1645152283011,0.00805597,2902.9,2902.6,2.927117]
[1645152283215,0.00307711,2902.9,2902.8,0.73864461]
[1645152283413,0.00307711,2902.9,2902.8,1.23364461]
[1645152283812,0.00497886,2903.3,2902.8,1.23364461]
[1645152284213,0.00307705,2903.0,2902.8,2.09489461]
[1645152285157,0.00497886,2903.3,2903.0,0.86128]
[1645152285357,0.00497886,2903.3,2903.0,1.72256]
[1645152286265,0.00497886,2903.3,2903.1,1.72258]
[1645152286560,0.00497886,2903.3,2903.1,2.58385]
[1645152286561,0.00307687,2903.3,2903.1,2.58385]
[1645152287561,0.00497886,2903.5,2903.2,0.86127]
[1645152287760,0.00307684,2903.3,2903.2,0.86127]
[1645152288811,0.00497886,2903.6,2903.4,1.78861655]
[1645152289009,0.65427073,2903.7,2903.4,1.78861655]
[1645152289209,0.00497886,2903.6,2903.4,1.78861655]
[1645152289509,0.65924959,2903.7,2903.4,1.78861655]
[1645152289912,0.65924959,2903.7,2903.4,2.64990655]
[1645152290115,0.66232623,2903.7,2903.5,0.86123]
[1645152290914,0.0080555,2903.7,2903.5,2.58375]
[1645152291115,0.65427073,2903.8,2903.6,0.86122]
[1645152291320,0.00805547,2903.7,2903.6,0.86122]
[1645152291516,0.00307661,2903.7,2903.6,0.86122]
[1645152292317,0.00497886,2903.8,2903.6,0.86122]
[1645152292570,0.00805544,2903.8,2903.7,0.86127]
[1645152292970,0.00307658,2903.8,2903.7,0.86127]
[1645152293571,0.65924959,2903.9,2903.7,0.86127]
[1645152293572,0.65427073,2903.9,2903.7,0.86127]
[1645152293773,0.6623261,2903.9,2903.7,0.86127]
[1645152294375,0.65427073,2903.8,2903.7,0.86127]
[1645152297520,0.65427073,2903.8,2903.5,0.86134]
[1645152297714,0.65427073,2903.7,2903.5,0.86134]
[1645152298017,0.00307651,2903.9,2903.5,7.72262]
[1645152298319,1.1408,2904.6,2903.6,1.6671]
[1645152298320,0.87236098,2904.6,2903.6,1.6671]
[1645152298617,3.5,2904.8,2903.6,1.6671]
[1645152298618,0.0030766,2903.7,2903.6,1.6671]
[1645152299419,3.5,2904.6,2903.6,1.6671]
[1645152299617,4.37236098,2904.8,2904.0,0.86098]
[1645152299819,3.5,2904.8,2904.0,0.86098]
[1645152300062,4.22756098,2904.9,2904.1,0.86097]
[1645152300265,2.41146098,2904.9,2904.1,0.86097]
[1645152300466,1.5391,2904.9,2904.1,0.86097]
[1645152300964,0.00307608,2904.6,2904.1,0.86097]
[1645152301164,0.00307608,2904.6,2904.3,2.00236672]
[1645152301369,0.00307608,2904.6,2904.4,0.86096]
[1645152301970,0.5,2905.2,2904.4,0.86096]
[1645152301971,0.87236098,2905.0,2904.4,0.86096]
[1645152302172,0.87236098,2905.0,2904.4,2.58268]
[1645152302173,0.00307608,2904.6,2904.4,2.58268]
[1645152302369,0.00307608,2904.6,2904.5,1.7217]
[1645152303167,0.66493676,2904.9,2904.5,0.1562729]
[1645152303367,0.00307605,2904.7,2904.6,0.86083]
[1645152303569,0.66801281,2904.7,2904.6,0.86083]
[1645152304216,0.66493676,2904.7,2904.6,1.72166]
[1645152304615,0.66493676,2904.7,2904.6,2.58247]
[1645152306421,0.00307598,2904.8,2904.6,2.58247]
[1645152306422,0.00307598,2904.8,2904.7,2.5]
[1645152306620,0.5,2905.2,2904.7,6.495]
[1645152306825,0.5,2905.2,2904.9,0.86063]
[1645152307023,4.94856098,2906.2,2905.0,0.495]
[1645152307226,4.0762,2906.2,2905.1,3.5]
[1645152307464,4.0762,2906.2,2905.2,1.667]
[1645152307863,0.5,2905.5,2905.2,1.82756]
[1645152308065,0.00307537,2905.8,2905.4,0.86053]
[1645152308267,0.00307537,2905.8,2905.4,3.0767]
[1645152308464,0.00307537,2905.8,2905.5,0.94754162]
[1645152309067,1.05915678,2906.2,2905.6,0.42176542]
[1645152309264,1.05915678,2906.2,2905.7,0.86056]
[1645152309472,0.0030754,2905.8,2905.7,0.86056]
[1645152310265,0.08212,2906.3,2905.7,1.72112]
[1645152310469,0.08212,2906.3,2905.9,1.72106]
[1645152310668,0.08212,2906.3,2905.9,0.86053]
[1645152311719,2.33328064,2906.7,2905.9,0.86053]
[1645152311720,0.00307511,2906.2,2905.9,0.86053]
[1645152311914,0.00307511,2906.2,2906.0,0.86051]
[1645152312814,1.84502652,2906.7,2906.0,0.86051]
[1645152313015,0.00307511,2906.2,2905.9,0.86055]
[1645152313216,0.00307511,2906.2,2905.8,8.61106]
[1645152313217,0.00307511,2906.2,2905.8,6.89006]
[1645152313614,0.00307511,2906.2,2905.8,5.169]
[1645152313818,0.65084588,2906.5,2905.8,5.169]
[1645152314016,1.19418064,2906.7,2905.9,0.86052]
[1645152314017,0.00495396,2906.4,2905.9,0.86052]
[1645152314217,0.00307517,2906.1,2905.9,0.86052]
[1645152314815,0.00307517,2906.1,2905.8,5.169]